bitfinex/quotes_ETHUSD_20250814
["timestamp","ask_amount","ask_price","bid_price","bid_amount"]
[1755153840966,3.368,4765.4,4763.5,0.2093]
[1755153841149,14.52,4764.4,4763.7,3.2093]
[1755153841457,14.52,4764.4,4763.9,0.2093]
[1755153841664,14.52,4764.4,4763.3,27.39444227]
[1755153841665,0.02,4764.4,4764.2,3.2093]
[1755153841825,0.02,4764.4,4764.3,1.052]
[1755153842283,0.4623,4764.4,4764.1,0.15994922]
[1755153842428,0.4423,4764.3,4764.1,0.15994922]
[1755153842628,0.02,4764.4,4764.1,0.15994922]
[1755153842629,0.4423,4764.2,4764.1,0.15994922]
[1755153842844,0.02,4764.4,4764.1,0.15994922]
[1755153843041,14.5,4764.3,4763.3,0.2093]
[1755153843367,14.5,4764.3,4763.3,0.36721705]
[1755153844069,14.5,4764.3,4763.4,3.0]
[1755153844368,14.5,4764.3,4763.8,3.0]
[1755153844665,14.5,4764.3,4763.9,1.3633]
[1755153844846,0.02,4764.4,4763.9,1.3633]
[1755153845048,0.02,4764.4,4764.0,1.3633]
[1755153845265,0.02,4764.4,4763.8,3.0]
[1755153845561,0.02,4764.4,4764.1,1.052]
[1755153845762,0.02,4764.4,4764.2,4.052]
[1755153846079,0.02,4764.4,4764.2,3.0]
[1755153846237,0.02,4764.4,4764.3,1.052]
[1755153847366,0.02,4764.4,4764.3,1.3633]
[1755153847556,14.5,4765.3,4764.3,1.3633]
[1755153847866,0.02,4765.4,4764.9,3.0]
[1755153848068,0.02,4765.4,4765.1,3.0]
[1755153848265,0.02,4765.4,4765.2,1.052]
[1755153848562,0.02,4765.4,4765.1,3.0]
[1755153848873,0.02,4765.4,4765.2,1.052]
[1755153849045,0.02,4765.4,4765.3,1.052]
[1755153849542,0.022,4765.4,4765.3,1.3633]
[1755153849738,0.022,4765.4,4765.3,1.53051941]
[1755153850668,0.022,4765.4,4765.3,7.87251941]
[1755153850836,0.002,4765.9,4765.4,3.0]
[1755153851036,0.002,4765.9,4765.8,30.39444227]
[1755153851261,0.002,4765.9,4765.8,31.44644227]
[1755153851573,0.02,4766.4,4765.9,3.0]
[1755153851772,0.02,4766.4,4765.5,0.73398717]
[1755153851942,0.4423,4766.3,4765.7,3.0]
[1755153852135,0.4423,4766.3,4765.6,3.344]
[1755153852136,0.4423,4766.3,4765.3,0.16721941]
[1755153852340,0.4423,4766.3,4765.5,3.0]
[1755153852536,0.4423,4766.3,4765.6,3.346]
[1755153852850,0.4423,4766.3,4765.7,3.0]
[1755153853438,14.5,4766.2,4765.7,3.0]
[1755153853639,0.4423,4766.1,4765.1,3.0]
[1755153853836,0.4423,4766.1,4765.0,27.56818606]
[1755153854040,0.4423,4766.1,4765.1,6.344]
[1755153854783,0.002,4765.9,4765.3,3.0]
[1755153854965,0.002,4765.9,4765.1,3.0]
[1755153855272,0.002,4765.9,4765.3,3.0]
[1755153856573,0.002,4765.9,4765.7,27.39444227]
[1755153856772,0.002,4765.9,4765.8,3.0]
[1755153858373,0.002,4765.9,4765.8,6.341]
[1755153858743,0.002,4765.9,4765.8,3.341]
[1755153859363,0.002,4765.9,4765.5,3.2093]
[1755153859556,0.002,4765.9,4765.8,3.341]
[1755153860675,0.002,4765.9,4765.8,3.0]
[1755153862269,0.002,4765.9,4765.3,3.0]
[1755153862461,0.4412,4765.9,4765.5,3.0]
[1755153862660,0.002,4765.9,4765.5,3.0]
[1755153862978,0.4392,4765.8,4765.5,3.0]
[1755153863766,0.4392,4765.8,4765.7,3.0]
[1755153863970,0.4392,4765.8,4765.7,10.07]
[1755153864278,0.4392,4765.8,4765.7,13.41]
[1755153864681,1.4772,4765.8,4765.7,7.07]
[1755153865159,1.4772,4765.8,4765.2,0.15340772]
[1755153865358,0.002,4765.9,4764.5,7.07]
[1755153865359,1.4772,4765.7,4764.9,3.0]
[1755153865581,14.5,4765.6,4764.9,3.49946671]
[1755153865884,1.4772,4765.5,4764.9,0.15946671]
[1755153866084,1.4772,4765.4,4764.2,7.07]
[1755153866287,1.4772,4765.3,4764.3,3.34]
[1755153866481,14.9392,4765.2,4764.4,3.0]
[1755153866683,0.4392,4765.1,4764.3,0.16825483]
[1755153866885,1.4772,4765.1,4763.9,10.41]
[1755153867084,1.4772,4765.1,4763.3,0.001]
[1755153867085,1.4772,4765.1,4764.0,0.16868291]
[1755153867256,1.4772,4765.0,4764.0,0.16868291]
[1755153867585,14.5,4764.5,4764.0,0.16868291]
[1755153867886,1.4772,4764.4,4763.5,3.0]
[1755153868056,1.4772,4764.4,4763.5,0.17341899]
[1755153868379,0.4392,4764.3,4763.5,3.34]
[1755153868584,14.5,4764.2,4763.5,3.34]
[1755153868978,0.4392,4764.1,4763.5,0.15380824]
[1755153869173,0.4392,4764.1,4763.3,3.17642334]
[1755153869586,14.5,4764.0,4763.3,3.17642334]
[1755153869785,14.5,4764.0,4763.5,3.0]
[1755153870088,1.4772,4763.9,4763.3,0.001]
[1755153870288,1.4772,4763.9,4763.3,0.16902267]
[1755153870585,3.34,4764.6,4763.3,3.16902267]
[1755153870773,14.5,4763.8,4763.5,3.0]
[1755153870974,3.34,4764.6,4763.5,3.0]
[1755153870975,3.4448,4764.6,4763.7,0.1048]
[1755153871176,0.1048,4764.6,4763.9,3.0]
[1755153871488,14.5,4764.5,4763.9,30.39444227]
[1755153871676,0.4392,4764.4,4763.5,0.83878717]
[1755153871880,0.1048,4764.1,4763.5,0.1048]
[1755153872194,0.1048,4764.1,4763.6,3.0]
[1755153872392,14.6048,4764.1,4763.6,3.0]
[1755153872595,0.4392,4764.0,4763.6,3.0]
[1755153873907,0.4392,4764.0,4763.5,0.1048]
[1755153874064,14.5,4764.1,4763.6,4.7249]
[1755153874266,14.5,4764.1,4764.0,30.39444227]
[1755153874609,0.1048,4764.9,4764.1,3.0]
[1755153874760,0.1048,4764.9,4764.3,3.0]
[1755153875878,0.4392,4765.5,4764.3,3.0]
[1755153876075,0.1048,4765.1,4764.3,3.0]
[1755153876708,0.4392,4765.0,4764.3,3.0]
[1755153877014,0.1048,4764.8,4764.3,3.0]
[1755153877348,1.4772,4764.7,4764.3,3.0]
[1755153877465,0.4392,4764.6,4764.3,3.0]
[1755153877869,1.038,4764.7,4764.3,3.0]
[1755153878105,0.4392,4764.5,4764.3,3.0]
[1755153878303,0.4392,4764.4,4764.1,3.34]
[1755153878507,0.4392,4764.3,4763.9,3.0]
[1755153878719,1.4772,4764.2,4763.9,3.0]
[1755153878924,0.1048,4764.3,4763.9,3.0]
[1755153879410,0.4392,4764.9,4763.9,3.0]
[1755153879593,0.1048,4764.8,4764.1,0.1048]
[1755153880473,0.1048,4764.8,4764.2,3.34]
[1755153880673,0.1048,4764.8,4764.3,3.34]
[1755153880873,0.544,4764.8,4764.1,0.1048]
[1755153881102,0.544,4764.8,4763.8,4.07398717]
[1755153881284,0.4392,4764.8,4763.8,3.34]
[1755153881686,0.4392,4764.8,4763.7,7.07]
[1755153881687,0.4392,4764.8,4763.9,3.34]
[1755153881889,0.1048,4764.5,4763.9,3.4448]
[1755153882100,0.1048,4764.5,4763.9,0.1048]
[1755153882306,0.1048,4764.5,4764.0,3.34]
[1755153882494,0.4392,4764.4,4764.0,3.34]
[1755153882873,0.4392,4764.4,4763.9,3.4448]
[1755153884406,0.4392,4764.4,4764.0,3.0]
[1755153885084,1.4772,4764.3,4764.0,3.0]
[1755153885276,0.1048,4764.2,4764.0,3.0]
[1755153885899,0.544,4764.2,4764.0,3.0]
[1755153886915,0.544,4764.2,4763.9,3.0]
[1755153887497,0.4392,4764.1,4763.9,3.0]
[1755153887904,0.4392,4764.1,4763.6,0.001]
[1755153888222,1.4772,4764.0,4763.6,0.001]
[1755153888405,0.4392,4763.9,4763.6,0.001]
[1755153888593,1.038,4764.0,4763.6,0.001]
[1755153888794,0.4392,4763.8,4763.6,0.001]
[1755153889724,0.544,4764.2,4763.6,0.001]
[1755153892200,0.1048,4764.2,4763.6,0.001]
[1755153893227,0.1048,4764.2,4763.6,0.73498717]
[1755153894098,0.5571,4764.2,4763.7,0.73398717]
[1755153894431,0.1048,4764.2,4763.7,3.34]
[1755153894629,0.1048,4764.2,4763.7,4.07398717]
[1755153895333,0.1048,4764.2,4763.8,0.73398717]
[1755153896004,0.1048,4764.2,4763.8,3.73398717]
[1755153896205,0.1048,4764.2,4764.1,0.73398717]
[1755153896613,1.5176,4765.4,4764.1,3.339]
[1755153896819,0.1048,4764.8,4764.4,0.74151344]
[1755153897826,0.10946579,4765.8,4764.5,4.08051344]
[1755153898013,0.1048,4765.1,4764.7,0.74151344]
[1755153898211,0.1048,4765.1,4764.8,3.339]
[1755153898406,0.1048,4765.1,4764.8,4.08051344]
[1755153898615,0.1048,4765.3,4764.8,4.08051344]
[1755153898816,0.1048,4765.3,4764.9,3.0]
[1755153899029,0.1048,4765.3,4765.0,0.74151344]
[1755153899244,0.4523,4765.7,4764.9,4.78371344]
[1755153899455,0.4523,4765.7,4765.0,0.74151344]
[1755153899632,0.4523,4765.7,4765.1,3.339]
[1755153899799,0.002,4765.9,4765.1,3.339]
[1755153899800,0.4543,4765.9,4765.1,3.339]
[1755153900011,0.1048,4765.5,4765.0,4.08051344]
[1755153900510,0.5571,4765.5,4765.0,4.08051344]
[1755153900711,0.1048,4765.5,4765.1,4.08051344]
[1755153900966,0.4523,4765.4,4765.1,0.74151344]
[1755153901253,0.4523,4765.3,4765.0,4.08051344]
[1755153901453,0.4523,4765.3,4765.0,3.339]
[1755153901832,0.1048,4765.5,4764.9,0.74151344]
[1755153902155,1.5176,4765.2,4764.3,0.74151344]
[1755153902315,0.002,4765.9,4764.1,0.74151344]
[1755153902521,1.5176,4765.8,4764.1,0.74151344]
[1755153902720,1.5176,4765.7,4764.1,0.74151344]
[1755153902944,1.5176,4765.6,4764.1,0.74151344]
[1755153903259,2.09859173,4765.2,4763.6,0.74251344]
[1755153903469,5.43660045,4765.1,4763.6,0.001]
[1755153903779,0.4523,4765.0,4763.6,0.001]
[1755153903920,1.5176,4765.0,4763.6,0.001]
[1755153904444,1.5176,4764.9,4763.6,0.001]
[1755153904633,1.5176,4764.8,4763.6,0.001]
[1755153904830,1.5176,4764.7,4763.6,0.001]
[1755153905125,1.5176,4764.6,4763.6,0.001]
[1755153905470,0.4523,4764.5,4763.6,0.001]
[1755153907981,3.338,4765.2,4763.9,0.55589851]
[1755153908258,3.338,4765.2,4764.3,0.55589851]
[1755153908259,0.4523,4765.1,4764.3,0.55589851]
[1755153908441,0.4523,4765.1,4764.2,0.55589851]
[1755153908939,0.4523,4765.1,4764.4,0.55589851]
[1755153911171,0.4523,4765.1,4763.7,4.10393167]
[1755153911172,0.4523,4765.8,4764.5,0.55589851]
[1755153911342,0.4523,4765.8,4765.0,0.55589851]
[1755153911738,0.002,4765.9,4765.1,0.55589851]
[1755153912063,0.002,4765.9,4765.4,0.55589851]
[1755153912274,0.002,4765.9,4765.7,0.55589851]
[1755153912467,0.002,4765.9,4765.8,0.55589851]
[1755153913155,0.002,4765.9,4765.7,0.55589851]
[1755153914770,0.002,4765.9,4765.7,0.71142667]
[1755153915456,0.002,4765.9,4765.7,0.55589851]
[1755153915644,0.4523,4765.8,4765.5,0.55589851]
[1755153916127,0.1048,4765.6,4765.5,0.55589851]
[1755153916334,0.1048,4765.6,4765.4,0.55589851]
[1755153918064,0.002,4765.9,4765.5,0.55589851]
[1755153918268,0.1068,4765.9,4765.4,0.55589851]
[1755153918633,0.1068,4765.9,4765.5,0.55589851]
[1755153919030,0.1068,4765.9,4765.7,4.10393167]
[1755153919031,0.002,4765.9,4765.7,4.10393167]
[1755153919349,0.002,4765.9,4765.8,1.147]
[1755153920368,0.002,4765.9,4765.8,5.56223167]
[1755153920865,0.002,4765.9,4765.8,4.4583]
[1755153921073,0.002,4765.9,4765.8,7.7933]
[1755153921372,0.002,4765.9,4765.8,9.89442725]
[1755153921566,0.002,4765.9,4765.8,6.55942725]
[1755153922264,0.002,4765.9,4765.8,9.89442725]
[1755153922482,0.002,4766.2,4765.9,3.0]
[1755153922669,0.002,4766.7,4766.1,0.2093]
[1755153922965,0.002,4766.7,4766.6,31.49964697]
[1755153923167,0.002,4767.2,4766.7,3.0]
[1755153923368,0.022,4767.4,4766.7,4.3484]
[1755153923569,0.022,4767.4,4767.0,1.10386575]
[1755153923737,0.022,4767.4,4767.2,3.0]
[1755153923943,0.022,4767.4,4767.2,5.22702658]
[1755153924142,0.022,4767.4,4767.2,6.06712201]
[1755153925152,0.022,4767.4,4767.2,5.33182658]
[1755153925645,1.0804,4769.3,4767.2,5.33182658]
[1755153925970,0.1068,4769.1,4768.3,0.1048]
[1755153926172,0.1068,4769.1,4768.3,2.20592725]
[1755153926338,0.002,4769.1,4768.3,3.13822725]
[1755153926668,0.4887,4768.4,4768.3,2.10112725]
[1755153926841,0.4887,4768.4,4768.1,3.333]
[1755153927446,0.02,4768.4,4768.1,3.64142742]
[1755153927648,0.02,4768.4,4768.1,31.03586969]
[1755153927874,1.5491,4768.3,4767.5,0.55109676]
[1755153928050,0.4687,4768.2,4767.6,0.21650188]
[1755153928248,0.4687,4768.2,4767.2,3.0]
[1755153928448,0.4687,4768.2,4767.3,3.333]
[1755153928784,1.0804,4768.1,4767.3,3.333]
[1755153928937,0.4687,4768.0,4767.2,3.15731671]
[1755153929268,0.4687,4768.0,4767.1,3.333]
[1755153929472,0.4687,4768.0,4767.2,3.0]
[1755153929768,1.0804,4767.9,4767.1,0.3333]
[1755153929989,0.4687,4767.8,4767.1,0.3333]
[1755153931457,0.4687,4767.8,4767.1,3.3333]
[1755153932442,0.4687,4767.8,4767.1,3.48749466]
[1755153934885,0.4687,4767.8,4767.1,6.81949466]
[1755153935441,0.4687,4767.8,4767.1,3.48749466]
[1755153935649,0.4687,4767.8,4767.2,3.332]
[1755153935985,0.4687,4768.2,4767.2,4.75160384]
[1755153936145,0.4687,4768.2,4767.2,1.41960384]
[1755153936354,0.1048,4767.8,4767.3,3.332]
[1755153936554,1.5491,4767.7,4767.3,7.07]
[1755153936849,1.5491,4767.7,4767.2,1.52440384]
[1755153936850,1.5491,4767.6,4767.1,0.15419466]
[1755153937064,0.1048,4767.3,4766.4,3.332]
[1755153937284,0.1048,4766.9,4766.4,3.30964591]
[1755153937577,1.5491,4766.8,4766.4,3.30964591]
[1755153937783,1.0804,4766.8,4766.4,0.30964591]
[1755153937982,0.4687,4766.7,4766.0,3.0]
[1755153938195,1.5491,4766.7,4766.1,1.39530968]
[1755153938407,0.02,4768.4,4766.0,27.55197138]
[1755153938552,0.4687,4767.3,4766.1,10.95209676]
[1755153938753,0.1048,4766.8,4766.2,3.331]
[1755153938953,0.4687,4766.7,4766.2,3.331]
[1755153939258,0.4687,4766.6,4766.2,3.331]
[1755153939801,0.1048,4766.8,4766.3,1.0371]
[1755153940020,0.1048,4766.8,4766.3,4.58819676]
[1755153940155,0.1048,4766.8,4766.4,0.55109676]
[1755153940454,0.1048,4767.2,4766.5,0.1048]
[1755153940661,0.1048,4766.5,4766.2,0.55109676]
[1755153941385,0.1048,4766.5,4766.3,0.55109676]
[1755153941572,1.5491,4766.4,4766.2,0.55109676]
[1755153941890,0.4687,4766.3,4766.2,0.55109676]
[1755153942488,0.4687,4766.3,4766.1,3.30372794]
[1755153942688,0.4687,4766.3,4766.2,0.55321309]
[1755153942986,0.1048,4766.5,4766.1,0.85694103]
[1755153943193,0.1048,4766.5,4766.1,0.30372794]
[1755153943498,0.4687,4766.4,4766.1,0.55321309]
[1755153943662,0.4687,4766.4,4766.0,14.1117422]
[1755153943862,0.1048,4766.5,4766.1,0.55321309]
[1755153944166,0.1048,4766.5,4766.1,4.18912044]
[1755153944167,0.4687,4766.4,4766.1,4.18912044]
[1755153944367,1.5491,4766.4,4766.1,4.18912044]
[1755153944674,1.5491,4766.3,4766.1,0.55321309]
[1755153944883,0.1048,4766.2,4766.1,0.30678778]
[1755153945053,0.1048,4766.2,4766.0,0.55321309]
[1755153945961,0.1048,4766.2,4766.0,0.70871575]
[1755153945962,1.5491,4766.1,4766.0,0.70871575]
[1755153946200,1.5491,4766.1,4765.8,0.55321309]
[1755153946369,1.5491,4766.1,4765.4,3.73529543]
[1755153946370,0.1048,4765.8,4765.6,0.55321309]
[1755153946763,0.4687,4765.7,4765.6,0.55321309]
[1755153947175,0.4687,4765.7,4765.6,0.71378751]
[1755153947866,0.1048,4765.8,4765.6,0.55321309]
[1755153948070,0.1048,4765.8,4765.6,3.55321309]
[1755153948664,0.1048,4765.8,4765.7,0.55321309]
[1755153949769,1.6539,4765.8,4765.6,0.55321309]
[1755153949967,0.4687,4765.7,4765.6,0.70695355]
[1755153950176,0.5735,4765.7,4765.6,0.70695355]
[1755153950572,0.5735,4765.7,4765.6,0.15374046]
[1755153950777,0.5735,4765.7,4765.5,0.55321309]
[1755153951109,0.5735,4765.7,4765.4,3.0]
[1755153951110,1.0804,4766.3,4765.6,0.55321309]
[1755153951335,0.1048,4765.7,4765.6,6.88421309]
[1755153951607,0.4687,4766.4,4765.6,6.88421309]
[1755153951811,0.1048,4765.9,4765.6,6.88421309]
[1755153952012,0.1048,4765.9,4765.6,3.55321309]
[1755153952202,1.5381,4765.8,4765.6,3.15524865]
[1755153952404,1.0724,4765.8,4765.6,3.15524865]
[1755153952609,0.4657,4765.7,4765.6,3.15524865]
[1755153952810,0.4657,4765.7,4765.6,0.15524865]
[1755153952992,0.4657,4765.7,4765.5,0.55321309]
[1755153953192,0.5705,4765.6,4765.4,3.81601754]
[1755153953435,1.5381,4765.5,4765.3,0.55421309]
[1755153953600,0.4657,4765.4,4765.3,0.001]
[1755153953792,1.5381,4765.4,4765.3,0.001]
[1755153954727,0.1048,4765.6,4765.3,0.15716967]
[1755153954893,0.4657,4765.5,4765.3,0.15716967]
[1755153955320,0.1048,4765.6,4765.3,0.15716967]
[1755153955321,0.4657,4765.4,4765.3,0.15716967]
[1755153955639,1.5381,4765.4,4765.3,0.15716967]
[1755153956524,1.5381,4765.4,4765.3,0.001]
[1755153957921,0.1048,4765.4,4765.3,0.001]
[1755153958696,0.4657,4766.4,4765.3,0.001]
[1755153958899,0.1048,4765.8,4765.3,0.001]
[1755153959124,0.1048,4765.8,4765.3,5.10212725]
[1755153959421,0.1048,4765.8,4765.4,1.54471309]
[1755153959626,0.1048,4765.8,4765.7,0.55321309]
[1755153960038,0.1048,4765.8,4765.7,0.9915]
[1755153960243,0.1048,4765.8,4765.7,2.03809543]
[1755153960406,0.1048,4766.3,4765.8,3.0]
[1755153960736,0.002,4767.3,4765.7,6.40392725]
[1755153960737,0.1048,4766.9,4766.2,0.84260141]
[1755153960934,14.6048,4766.9,4766.5,0.55323262]
[1755153961437,14.6048,4766.9,4766.4,3.0]
[1755153961438,0.002,4767.3,4766.7,0.65803262]
[1755153961636,0.002,4767.3,4766.8,0.55323262]
[1755153961801,0.002,4767.3,4767.1,0.55323262]
[1755153962203,0.1068,4767.3,4767.2,0.55323262]
[1755153963965,0.002,4767.3,4767.2,0.9915]
[1755153964135,0.002,4767.3,4767.2,5.34484672]
[1755153965154,0.002,4767.3,4767.2,6.44871247]
[1755153965355,0.002,4767.3,4767.2,9.77871247]
[1755153965562,0.002,4767.4,4767.3,3.0]
[1755153965767,0.002,4767.4,4767.2,4.37204672]
[1755153966071,0.002,4767.4,4767.3,2.18709036]
[1755153966670,0.002,4767.4,4767.3,8.51609036]
[1755153968144,0.002,4767.9,4767.8,30.39444227]
[1755153968477,0.002,4768.9,4767.9,3.0]
[1755153968637,0.002,4768.9,4768.0,1.3028]
[1755153968842,0.002,4768.9,4768.1,9.83772725]
[1755153969068,0.002,4768.9,4768.8,30.39444227]
[1755153969274,0.002,4768.9,4768.8,34.81974227]
[1755153969570,0.002,4768.9,4768.8,35.13104227]
[1755153970173,0.02,4769.4,4768.9,3.0]
[1755153970478,0.02,4769.4,4769.0,3.09262725]
[1755153970654,0.02,4769.4,4769.0,6.42062725]
[1755153971248,0.02,4769.4,4769.0,9.73192725]
[1755153971452,0.002,4770.1,4769.3,0.54907796]
[1755153971689,0.002,4770.1,4769.5,30.39444227]
[1755153971852,0.002,4770.1,4769.5,33.48706952]
[1755153972044,0.002,4770.1,4769.5,32.49556952]
[1755153973475,0.002,4770.1,4769.5,35.82356952]
[1755153975062,0.002,4770.1,4769.5,32.49556952]
[1755153975266,0.002,4770.1,4769.5,35.82256952]
[1755153975469,0.002,4770.1,4769.5,42.89256952]
[1755153976353,0.002,4770.1,4769.5,39.56556952]
[1755153976555,0.002,4770.1,4769.5,42.89256952]
[1755153976754,0.002,4770.1,4769.5,42.89156952]
[1755153977888,0.002,4770.1,4769.5,43.88306952]
[1755153978052,0.002,4770.1,4769.5,44.19436952]
[1755153978255,0.002,4770.1,4769.6,12.17112725]
[1755153978585,0.002,4770.1,4770.0,0.1048]
[1755153978756,0.002,4770.1,4769.6,9.17112725]
[1755153978757,0.4657,4770.0,4769.8,3.326]
[1755153978956,1.5381,4769.9,4769.8,3.326]
[1755153979673,1.5381,4769.9,4769.7,3.0]
[1755153979866,0.1068,4770.1,4769.8,3.326]
[1755153980253,14.5,4770.0,4769.8,3.326]
[1755153980453,14.9657,4770.0,4769.8,3.59469374]
[1755153980656,14.5,4770.0,4769.8,3.59469374]
[1755153980855,0.002,4770.1,4769.8,3.69949374]
[1755153981089,0.4657,4770.0,4769.8,3.69949374]
[1755153981261,0.4387,4769.9,4769.8,3.69949374]
[1755153981468,1.4614,4769.9,4769.8,0.37349374]
[1755153981651,1.4614,4769.9,4769.8,3.69849374]
[1755153981652,0.4387,4769.9,4769.8,3.69849374]
[1755153982285,0.002,4770.1,4769.8,3.69849374]
[1755153982583,0.4407,4770.1,4770.0,3.0]
[1755153982798,0.002,4770.1,4770.0,3.15844863]
[1755153983697,0.4407,4770.1,4770.0,33.8778909]
[1755153984195,1.4634,4770.1,4770.0,3.48344863]
[1755153984361,1.4634,4770.1,4770.0,3.325]
[1755153984801,1.5682,4770.1,4770.0,3.325]
[1755153985881,1.5682,4770.1,4770.0,3.324]
[1755153986483,1.5682,4770.1,4770.0,3.48232307]
[1755153986873,1.5682,4770.1,4770.0,0.15832307]
[1755153987073,1.5682,4770.1,4770.0,3.324]
[1755153987494,1.5682,4770.1,4769.8,3.27226485]
[1755153987805,0.1068,4770.1,4770.0,3.0]
[1755153988186,14.6068,4770.1,4770.0,3.0]
[1755153988372,16.0682,4770.1,4770.0,3.0]
[1755153989106,16.0682,4770.1,4769.9,3.324]
[1755153989275,14.6068,4770.1,4769.9,3.324]
[1755153989474,1.4614,4770.0,4769.9,3.324]
[1755153990089,1.4614,4770.0,4769.8,0.27226485]
[1755153990381,1.4614,4769.9,4769.7,7.22558609]
[1755153990728,14.6068,4770.1,4769.8,3.324]
[1755153991177,1.4614,4770.0,4769.8,3.324]
[1755153991377,1.4614,4770.0,4769.8,3.58663757]
[1755153991577,0.4387,4769.9,4769.8,3.58663757]
[1755153992221,0.4387,4769.9,4769.8,4.13571553]
[1755153992705,0.4387,4769.9,4769.8,3.87307796]
[1755153993273,0.4387,4769.9,4769.8,10.394]
[1755153994110,0.4387,4769.9,4769.8,10.393]
[1755153995323,0.4387,4769.9,4769.8,11.12578553]
[1755153995484,14.6068,4770.1,4769.8,11.12871637]
[1755153995822,0.002,4770.1,4769.9,10.07]
[1755153996110,0.002,4770.1,4770.0,7.42371791]
[1755153996327,0.002,4770.1,4770.0,6.323]
[1755153996916,0.002,4770.1,4770.0,7.3198]
[1755153997114,0.002,4770.1,4770.0,9.52572725]
[1755153997599,0.002,4770.1,4770.0,8.52892725]
[1755153998997,0.002,4770.1,4770.0,9.73502725]
[1755154001686,0.002,4770.1,4770.0,5.41522725]
[1755154002117,0.002,4770.1,4770.0,8.73622725]
[1755154002521,0.002,4770.1,4770.0,5.41522725]
[1755154003023,0.002,4770.1,4770.0,8.73622725]
[1755154004089,0.002,4770.1,4770.0,5.41522725]
[1755154004416,0.002,4770.1,4770.0,8.73622725]
[1755154004619,0.002,4770.1,4770.0,8.10801945]
[1755154004790,0.002,4770.1,4770.0,6.6351]
[1755154005413,0.002,4770.1,4770.0,8.10801945]
[1755154005997,0.002,4770.1,4770.0,9.10481945]
[1755154006197,0.002,4770.1,4770.0,7.6319]
[1755154006411,0.002,4770.1,4770.0,9.73302725]
[1755154006603,0.002,4770.9,4770.2,0.2093]
[1755154006804,0.002,4770.9,4770.8,17.1440848]
[1755154007010,0.002,4770.9,4770.8,19.09709379]
[1755154007317,0.002,4770.9,4770.8,15.77709379]
[1755154007535,0.002,4770.9,4770.8,20.84291227]
[1755154007694,0.002,4770.9,4770.8,22.31470328]
[1755154007893,0.002,4770.9,4770.8,23.31150328]
[1755154008109,0.002,4770.9,4770.8,21.83971227]
[1755154008310,0.002,4770.9,4770.8,23.31056597]
[1755154008721,0.002,4770.9,4770.8,21.83971227]
[1755154009223,0.002,4770.9,4770.8,23.3104424]
[1755154009624,0.002,4770.9,4770.8,21.83971227]
[1755154010324,0.002,4771.5,4770.9,3.0]
[1755154010515,0.002,4771.5,4771.3,15.88159379]
[1755154010711,0.002,4771.5,4771.3,19.20059379]
[1755154010914,0.002,4771.5,4771.3,21.77182419]
[1755154011111,0.002,4771.5,4771.3,20.30219379]
[1755154011315,0.002,4771.5,4771.3,21.77057999]
[1755154011513,0.002,4771.5,4771.3,23.87170724]
[1755154012213,0.002,4772.0,4771.4,3.2093]
[1755154012412,0.002,4772.0,4771.9,15.77709379]
[1755154012617,0.002,4772.0,4771.9,20.09339379]
[1755154013626,0.002,4772.8,4772.1,0.2093]
[1755154013826,0.002,4772.8,4772.7,16.87650736]
[1755154014324,0.002,4772.8,4772.7,19.09509379]
[1755154014492,0.002,4772.8,4772.7,6.57574703]
[1755154014957,0.002,4772.8,4772.7,8.67099709]
[1755154015228,0.02,4773.9,4773.3,3.0]
[1755154015427,0.02,4773.9,4773.8,0.73137152]
[1755154015726,0.02,4773.9,4773.8,6.318]
[1755154016108,0.02,4773.9,4773.8,8.41235728]
[1755154016697,0.02,4773.9,4773.8,7.3153]
[1755154017300,0.02,4773.9,4773.8,6.317]
[1755154017499,0.02,4773.9,4773.8,7.04657137]
[1755154018026,0.02,4773.9,4773.8,3.72957137]
[1755154018337,1.481,4773.9,4773.8,3.0]
[1755154018521,0.481,4773.9,4773.2,0.54681169]
[1755154018730,0.4737,4773.8,4772.9,0.54681169]
[1755154018904,0.4737,4773.8,4773.0,3.317]
[1755154019105,0.4737,4773.8,4772.6,0.54681169]
[1755154019410,0.4737,4773.8,4772.7,3.317]
[1755154019632,0.4737,4773.8,4772.7,30.73752595]
[1755154019822,0.4737,4773.8,4773.4,27.42052595]
[1755154020022,0.4737,4773.7,4773.5,3.317]
[1755154020320,0.01879558,4774.9,4772.8,3.0]
[1755154020321,0.4737,4773.6,4772.8,3.0]
[1755154020721,0.9873,4773.5,4772.8,3.0]
[1755154020913,0.4737,4773.4,4772.8,3.0]
[1755154021547,0.4737,4773.6,4772.9,0.64738133]
[1755154021710,0.4737,4773.6,4772.9,3.316]
[1755154022401,0.9873,4773.5,4772.4,0.54681169]
[1755154022601,0.4737,4773.4,4772.6,3.0]
[1755154022907,0.4737,4773.4,4772.8,3.0]
[1755154023112,0.4737,4773.4,4772.9,3.316]
[1755154023433,0.4737,4773.3,4772.9,3.316]
[1755154023633,0.9873,4774.0,4773.0,3.0]
[1755154023838,0.4737,4773.7,4773.2,3.0]
[1755154024132,0.9873,4773.6,4773.2,3.0]
[1755154024336,0.4737,4773.5,4773.2,3.0]
[1755154024699,0.4737,4773.4,4773.2,3.0]
[1755154024902,0.4737,4773.3,4773.2,3.0]